fUST/lending_fUST_20250719
["ID","MTS","AMOUNT","RATE_DAILY","PERIOD"]
[373173289,1752889853853,-1641.4,0.00019452,2]
[373173290,1752889853863,-460.0,0.00019452,2]
[373173291,1752889853872,-460.0,0.00019452,2]
[373173292,1752889853881,-460.0,0.00019452,2]
[373173294,1752889853891,-460.0,0.00019452,2]
[373173296,1752889853900,-460.0,0.00019452,2]
[373173298,1752889853912,-1213.09,0.00019452,2]
[373173300,1752889853922,-555.73,0.00019452,2]
[373173302,1752889853931,-460.0,0.00019452,2]
[373173304,1752889853941,-460.0,0.00019452,2]
[373173306,1752889853950,-460.0,0.00019452,2]
[373173308,1752889853960,-2991.77,0.00019452,2]
[373173310,1752889853970,-460.0,0.00019452,2]
[373173312,1752889853980,-1987.27,0.00019452,2]
[373173314,1752889853990,-938.91,0.00019452,2]
[373173316,1752889853999,-460.0,0.00019452,2]
[373173318,1752889854008,-1454.48,0.00019452,2]
[373173320,1752889854018,-488.63,0.00019452,2]
[373173322,1752889854028,-460.0,0.00019452,2]
[373173324,1752889854037,-460.0,0.00019452,2]
[373173326,1752889854047,-737.82,0.00019452,2]
[373173328,1752889854056,-460.32,0.00019452,2]
[373173330,1752889854065,-460.0,0.00019452,2]
[373173332,1752889854075,-967.13,0.00019452,2]
[373173334,1752889854084,-3100.36,0.00019452,2]
[373173336,1752889854094,-460.0,0.00019452,2]
[373173338,1752889854103,-1316.83,0.00019452,2]
[373173340,1752889854114,-460.0,0.00019452,2]
[373173342,1752889854123,-460.0,0.00019452,2]
[373173344,1752889854133,-460.0,0.00019452,2]
[373173346,1752889854142,-151.0,0.000195,2]
[373173348,1752889854151,-1897.0,0.00019631,2]
[373173350,1752889854162,-587.0,0.00019631,2]
[373173352,1752889854171,-501.34142296,0.00019711,2]
[373173354,1752889854180,-503.55718939,0.00019711,2]
[373173356,1752889854190,-186.6663361,0.00019711,2]
[373173358,1752889854200,-204.92669407,0.00019711,2]
[373173360,1752889854209,-505.32628002,0.00019711,2]
[373173362,1752889854219,-500.45841351,0.00019711,2]
[373173364,1752889854228,-387.15321444,0.00019711,2]
[373173366,1752889854238,-500.0,0.00019711,2]
[373173369,1752889854251,-460.0,0.00019726,2]
[373173371,1752889854260,-624.98,0.00019726,2]
[373173373,1752889854270,-460.0,0.00019726,2]
[373173375,1752889854279,-615.826,0.00019726,2]
[373173377,1752889854289,-460.0,0.00019726,2]
[373173379,1752889854299,-460.0,0.00019726,2]
[373173381,1752889854308,-498.88,0.00019726,2]
[373173382,1752889854318,-460.0,0.00019726,2]
[373173385,1752889854328,-460.0,0.00019726,2]
[373173387,1752889854337,-460.0,0.00019726,2]
[373173388,1752889854346,-460.0,0.00019726,2]
[373173391,1752889854356,-287.14175686,0.00019726,2]
[373173393,1752889854365,-460.0,0.00019726,2]
[373173395,1752889854374,-460.0,0.00019726,2]
[373173397,1752889854383,-643.65,0.00019726,2]
[373173398,1752889854393,-460.0,0.00019726,2]
[373173401,1752889854403,-460.0,0.00019726,2]
[373173403,1752889854413,-460.0,0.00019726,2]
[373173405,1752889854423,-460.0,0.00019726,2]
[373173407,1752889854432,-460.0,0.00019726,2]
[373173409,1752889854441,-1048.66,0.00019726,2]
[373173411,1752889854451,-2112.61,0.00019726,2]
[373173413,1752889854460,-460.0,0.00019726,2]
[373173415,1752889854469,-460.0,0.00019726,2]
[373173417,1752889854479,-460.0,0.00019726,2]
[373173418,1752889854488,-460.0,0.00019726,2]
[373173421,1752889854498,-460.0,0.00019726,2]
[373173423,1752889854507,-1102.5,0.00019726,2]
[373173425,1752889854516,-460.0,0.00019726,2]
[373173427,1752889854525,-460.0,0.00019726,2]
[373173429,1752889854535,-514.42,0.00019726,2]
[373173431,1752889854545,-652.43,0.00019726,2]
[373173433,1752889854555,-1428.9,0.00019726,2]
[373173435,1752889854564,-1641.4,0.00019726,2]
[373173437,1752889854574,-460.0,0.00019726,2]
[373173439,1752889854587,-460.0,0.00019726,2]
[373173441,1752889854597,-460.0,0.00019726,2]
[373173443,1752889854606,-460.0,0.00019726,2]
[373173445,1752889854616,-460.0,0.00019726,2]
[373173447,1752889854625,-1213.09,0.00019726,2]
[373173449,1752889854635,-555.73,0.00019726,2]
[373173451,1752889854644,-460.0,0.00019726,2]
[373173453,1752889854654,-460.0,0.00019726,2]
[373173455,1752889854664,-460.0,0.00019726,2]
[373173457,1752889854674,-2991.77,0.00019726,2]
[373173459,1752889854683,-460.0,0.00019726,2]
[373173461,1752889854692,-1987.27,0.00019726,2]
[373173463,1752889854702,-938.91,0.00019726,2]
[373173465,1752889854711,-460.0,0.00019726,2]
[373173467,1752889854720,-1454.48,0.00019726,2]
[373173469,1752889854729,-488.63,0.00019726,2]
[373173471,1752889854738,-460.0,0.00019726,2]
[373173473,1752889854747,-460.0,0.00019726,2]
[373173476,1752889854757,-737.82,0.00019726,2]
[373173478,1752889854769,-460.32,0.00019726,2]
[373173480,1752889854778,-460.0,0.00019726,2]
[373173482,1752889854787,-967.13,0.00019726,2]
[373173484,1752889854797,-3100.36,0.00019726,2]
[373173486,1752889854808,-460.0,0.00019726,2]
[373173488,1752889854817,-1316.83,0.00019726,2]
[373173490,1752889854827,-460.0,0.00019726,2]
[373173492,1752889854836,-460.0,0.00019726,2]
[373173494,1752889854845,-460.0,0.00019726,2]
[373173496,1752889854855,-170.18971475,0.00019743,2]
[373173498,1752889854864,-305.33086894,0.00019743,2]
[373173500,1752889854874,-150.44874067,0.00019743,2]
[373173502,1752889854883,-618.97160078,0.00019753,2]
[373173504,1752889854892,-500.0,0.00019753,2]
[373173506,1752889854901,-501.51906247,0.00019753,2]
[373173508,1752889854912,-501.04531724,0.00019753,2]
[373173510,1752889854921,-500.0,0.00019753,2]
[373173512,1752889854930,-460.0,0.00019777,2]
[373173514,1752889854940,-1000.0,0.000198,7]
[373173516,1752889854949,-1146.89,0.000198,8]
[373173518,1752889854959,-12128.58238432,0.00019893,2]
[373173520,1752889854968,-151.0,0.000199,2]
[373173522,1752889854977,-7527.79217153,0.00019956,2]
[373173524,1752889854986,-460.0,0.0002,2]
[373173526,1752889854996,-152.0,0.0002,2]
[373173528,1752889855005,-624.98,0.0002,2]
[373173530,1752889855014,-460.0,0.0002,2]
[373173532,1752889855024,-460.0,0.0002,2]
[373173534,1752889855035,-381.6047024,0.0002,2]
[373173536,1752889855044,-498.88,0.0002,2]
[373173538,1752889855054,-460.0,0.0002,2]
[373173540,1752889855064,-265.14923213,0.0002,2]
[373173542,1752889855074,-473.64840891,0.0002,2]
[373173544,1752889855084,-460.0,0.0002,2]
[373173546,1752889855093,-460.0,0.0002,2]
[373173548,1752889855103,-504.84849972,0.0002,2]
[373173550,1752889855112,-643.65,0.0002,2]
[373173552,1752889855122,-460.0,0.0002,2]
[373173554,1752889855132,-257.76349841,0.0002,2]
[373173556,1752889855142,-460.0,0.0002,2]
[373173558,1752889855153,-460.0,0.0002,2]
[373173560,1752889855164,-460.0,0.0002,2]
[373173562,1752889855174,-1048.66,0.0002,2]
[373173564,1752889855184,-2112.61,0.0002,2]
[373173566,1752889855194,-460.0,0.0002,2]
[373173582,1752889855337,-460.0,0.0002,2]
[373173585,1752889855349,-460.0,0.0002,2]
[373173587,1752889855360,-460.0,0.0002,2]
[373173589,1752889855370,-460.0,0.0002,2]
[373173591,1752889855380,-1102.5,0.0002,2]
[373173593,1752889855389,-460.0,0.0002,2]
[373173595,1752889855399,-460.0,0.0002,2]
[373173597,1752889855408,-514.42,0.0002,2]
[373173599,1752889855419,-652.43,0.0002,2]
[373173601,1752889855429,-1428.9,0.0002,2]
[373173603,1752889855438,-1641.4,0.0002,2]
[373173605,1752889855448,-338.49858829,0.0002,2]
[373173607,1752889855458,-460.0,0.0002,2]
[373173609,1752889855468,-460.0,0.0002,2]
[373173611,1752889855477,-460.0,0.0002,2]
[373173613,1752889855487,-460.0,0.0002,2]
[373173615,1752889855496,-1213.09,0.0002,2]
[373173617,1752889855506,-555.73,0.0002,2]
[373173619,1752889855515,-460.0,0.0002,2]
[373173621,1752889855525,-460.0,0.0002,2]
[373173623,1752889855534,-460.0,0.0002,2]
[373173625,1752889855544,-2991.77,0.0002,2]
[373173627,1752889855554,-460.0,0.0002,2]
[373173629,1752889855563,-1987.27,0.0002,2]
[373173631,1752889855577,-938.91,0.0002,2]
[373173633,1752889855587,-460.0,0.0002,2]
[373173635,1752889855597,-1454.48,0.0002,2]
[373173637,1752889855606,-488.63,0.0002,2]
[373173639,1752889855616,-474.89216432,0.0002,2]
[373173641,1752889855626,-460.0,0.0002,2]
[373173643,1752889855635,-737.82,0.0002,2]
[373173645,1752889855644,-460.32,0.0002,2]
[373173647,1752889855655,-460.0,0.0002,2]
[373173649,1752889855666,-967.13,0.0002,2]
[373173652,1752889855676,-3100.36,0.0002,2]
[373173654,1752889855687,-460.0,0.0002,2]
[373173656,1752889855696,-1316.83,0.0002,2]
[373173658,1752889855707,-460.0,0.0002,2]
[373173660,1752889855716,-460.0,0.0002,2]
[373173662,1752889855726,-460.0,0.0002,2]
[373173664,1752889855735,-649.403,0.00020009,2]
[373173666,1752889855745,-2156.0,0.00020009,2]
[373173668,1752889855754,-971.176,0.00020009,2]
[373173670,1752889855764,-150.0,0.00020009,2]
[373173672,1752889855773,-151.0,0.00020024,2]
[373173674,1752889855783,-207.4,0.00020024,2]
[373173676,1752889855792,-151.0,0.00020024,2]
[373173678,1752889855802,-151.0,0.00020024,2]
[373173680,1752889855811,-151.0,0.00020024,2]
[373173682,1752889855821,-151.0,0.00020024,2]
[373173684,1752889855831,-151.0,0.00020024,2]
[373173686,1752889855840,-151.0,0.00020024,2]
[373173688,1752889855849,-151.0,0.00020024,2]
[373173690,1752889855859,-151.0,0.00020024,2]
[373173692,1752889855869,-151.0,0.00020024,2]
[373173694,1752889855879,-151.0,0.00020024,2]
[373173696,1752889855888,-151.0,0.00020024,2]
[373173698,1752889855897,-151.0,0.00020024,2]
[373173700,1752889855907,-151.0,0.00020024,2]
[373173702,1752889855918,-151.0,0.00020024,2]
[373173704,1752889855928,-151.0,0.00020024,2]
[373173706,1752889855938,-151.0,0.00020024,2]
[373173708,1752889855947,-151.0,0.00020024,2]
[373173710,1752889855957,-151.0,0.00020024,2]
[373173712,1752889855967,-151.0,0.00020024,2]
[373173714,1752889855976,-151.0,0.00020024,2]
[373173717,1752889855986,-151.0,0.00020024,2]
[373173718,1752889855996,-3801.642,0.00020024,2]
[373173720,1752889856006,-151.0,0.00020024,2]
[373173723,1752889856016,-151.0,0.00020024,2]
[373173725,1752889856025,-151.0,0.00020024,2]
[373173727,1752889856035,-151.0,0.00020024,2]
[373173729,1752889856044,-151.0,0.00020024,2]
[373173731,1752889856053,-151.0,0.00020024,2]
[373173733,1752889856063,-151.0,0.00020024,2]
[373173735,1752889856073,-151.0,0.00020024,2]
[373173737,1752889856082,-151.0,0.00020024,2]
[373173739,1752889856092,-151.0,0.00020024,2]
[373173741,1752889856101,-151.0,0.00020024,2]
[373173743,1752889856111,-151.0,0.00020024,2]
[373173745,1752889856120,-151.0,0.00020024,2]
[373173747,1752889856129,-151.0,0.00020024,2]
[373173749,1752889856139,-151.0,0.00020024,2]
[373173751,1752889856149,-151.0,0.00020024,2]
[373173753,1752889856158,-151.0,0.00020024,2]
[373173755,1752889856168,-151.0,0.00020024,2]
[373173757,1752889856177,-151.0,0.00020024,2]
[373173759,1752889856186,-151.0,0.00020024,2]
[373173761,1752889856195,-151.0,0.00020024,2]
[373173763,1752889856204,-151.0,0.00020024,2]
[373173765,1752889856214,-152.24498157,0.00020024,2]
[373173767,1752889856224,-151.0,0.00020024,2]
[373173769,1752889856234,-151.0,0.00020024,2]
[373173771,1752889856244,-189.08578606,0.00020024,2]
[373173773,1752889856253,-151.0,0.00020024,2]
[373173775,1752889856264,-151.0,0.00020024,2]
[373173777,1752889856274,-151.0,0.00020024,2]
[373173779,1752889856283,-151.0,0.00020024,2]
[373173781,1752889856293,-151.0,0.00020024,2]
[373173783,1752889856302,-151.0,0.00020024,2]
[373173785,1752889856311,-151.0,0.00020024,2]
[373173787,1752889856321,-151.0,0.00020024,2]
[373173789,1752889856331,-151.0,0.00020024,2]
[373173791,1752889856340,-25000.0,0.00020024,2]
[373173793,1752889856349,-151.0,0.00020024,2]
[373173795,1752889856359,-17697.64054306,0.00020024,2]
[373173797,1752889856368,-3942.302754,0.00020079,2]
[373173799,1752889856378,-2925.49066153,0.00020134,2]
[373173801,1752889856387,-384.34898903,0.00020182,2]
[373173803,1752889856396,-480.661098,0.00020187,2]
[373173805,1752889856405,-7527.79217153,0.00020195,2]
[373173807,1752889856416,-500.0,0.00020202,2]
[373173809,1752889856426,-1000.0,0.00020259,2]
[373173811,1752889856436,-535.41929037,0.00020273,2]
[373173813,1752889856445,-624.98,0.00020273,2]
[373173815,1752889856455,-460.0,0.00020273,2]
[373173817,1752889856464,-460.0,0.00020273,2]
[373173819,1752889856474,-498.88,0.00020273,2]
[373173821,1752889856484,-460.0,0.00020273,2]
[373173823,1752889856493,-460.0,0.00020273,2]
[373173825,1752889856503,-460.0,0.00020273,2]
[373173827,1752889856514,-643.65,0.00020273,2]
[373173829,1752889856524,-460.0,0.00020273,2]
[373173831,1752889856534,-460.0,0.00020273,2]
[373173833,1752889856544,-460.0,0.00020273,2]
[373173835,1752889856554,-477.7346262,0.00020273,2]
[373173837,1752889856564,-1048.66,0.00020273,2]
[373173839,1752889856574,-2112.61,0.00020273,2]
[373173841,1752889856586,-460.0,0.00020273,2]
[373173843,1752889856596,-460.0,0.00020273,2]
[373173845,1752889856605,-476.99766685,0.00020273,2]
[373173847,1752889856614,-460.0,0.00020273,2]
[373173849,1752889856624,-460.0,0.00020273,2]
[373173851,1752889856634,-1102.5,0.00020273,2]
[373173853,1752889856643,-460.0,0.00020273,2]
[373173855,1752889856652,-460.0,0.00020273,2]
[373173857,1752889856663,-514.42,0.00020273,2]
[373173859,1752889856673,-652.43,0.00020273,2]
[373173861,1752889856683,-1428.9,0.00020273,2]
[373173863,1752889856692,-1641.4,0.00020273,2]
[373173865,1752889856702,-460.0,0.00020273,2]
[373173867,1752889856712,-460.0,0.00020273,2]
[373173869,1752889856722,-460.0,0.00020273,2]
[373173871,1752889856732,-460.0,0.00020273,2]
[373173874,1752889856742,-1213.09,0.00020273,2]
[373173875,1752889856751,-555.73,0.00020273,2]
[373173878,1752889856761,-460.0,0.00020273,2]
[373173880,1752889856770,-371.16320811,0.00020273,2]
[373173882,1752889856780,-460.0,0.00020273,2]
[373173884,1752889856789,-2991.77,0.00020273,2]
[373173886,1752889856799,-460.0,0.00020273,2]
[373173888,1752889856808,-1987.27,0.00020273,2]
[373173889,1752889856817,-938.91,0.00020273,2]
[373173892,1752889856828,-460.0,0.00020273,2]
[373173894,1752889856838,-1454.48,0.00020273,2]
[373173896,1752889856847,-488.63,0.00020273,2]
[373173898,1752889856856,-460.0,0.00020273,2]
[373173900,1752889856865,-737.82,0.00020273,2]
[373173902,1752889856874,-460.32,0.00020273,2]
[373173904,1752889856883,-211.3079855,0.00020273,2]
[373173906,1752889856893,-967.13,0.00020273,2]
[373173908,1752889856902,-3100.36,0.00020273,2]
[373173909,1752889856915,-460.0,0.00020273,2]
[373173912,1752889856925,-460.0,0.00020273,2]
[373173913,1752889856934,-1316.83,0.00020273,2]
[373173915,1752889856944,-460.0,0.00020273,2]
[373173917,1752889856952,-460.0,0.00020273,2]
[373173919,1752889856962,-700.0,0.00020282,2]
[373173921,1752889856971,-503.40908628,0.00020301,2]
[373173923,1752889856982,-501.15015757,0.00020301,2]
[373173925,1752889856991,-560.0,0.00020325,2]
[373173927,1752889857001,-250.0,0.00020375,2]
[373173929,1752889857011,-7527.79217153,0.00020377,2]
[373173931,1752889857020,-624.98,0.00020547,2]
[373173934,1752889857030,-460.0,0.00020547,2]
[373173936,1752889857040,-254.25465641,0.00020547,2]
[373173938,1752889857049,-498.88,0.00020547,2]
[373173940,1752889857059,-476.15220808,0.00020547,2]
[373173942,1752889857068,-460.0,0.00020547,2]
[373173944,1752889857077,-460.0,0.00020547,2]
[373173946,1752889857087,-643.65,0.00020547,2]
[373173948,1752889857097,-477.39810866,0.00020547,2]
[373173950,1752889857106,-460.0,0.00020547,2]
[373173952,1752889857116,-460.0,0.00020547,2]
[373173954,1752889857125,-1048.66,0.00020547,2]
[373173956,1752889857135,-2112.61,0.00020547,2]
[373173958,1752889857144,-460.0,0.00020547,2]
[373173960,1752889857153,-460.0,0.00020547,2]
[373173962,1752889857163,-460.0,0.00020547,2]
[373173964,1752889857173,-460.0,0.00020547,2]
[373173966,1752889857182,-1102.5,0.00020547,2]
[373173968,1752889857191,-460.0,0.00020547,2]
[373173970,1752889857202,-460.0,0.00020547,2]
[373173971,1752889857212,-514.42,0.00020547,2]
[373173973,1752889857221,-652.43,0.00020547,2]
[373173975,1752889857230,-1428.9,0.00020547,2]
[373173977,1752889857241,-1641.4,0.00020547,2]
[373173980,1752889857250,-460.0,0.00020547,2]
[373173982,1752889857260,-166.64680206,0.00020547,2]
[373173984,1752889857269,-460.0,0.00020547,2]
[373173986,1752889857280,-460.0,0.00020547,2]
[373173987,1752889857289,-1213.09,0.00020547,2]
[373173989,1752889857299,-555.73,0.00020547,2]
[373173991,1752889857309,-460.0,0.00020547,2]
[373173993,1752889857318,-160.53531408,0.00020547,2]
[373173995,1752889857328,-2991.77,0.00020547,2]
[373173998,1752889857337,-460.0,0.00020547,2]
[373174000,1752889857348,-1987.27,0.00020547,2]
[373174002,1752889857358,-938.91,0.00020547,2]
[373174004,1752889857367,-460.0,0.00020547,2]
[373174006,1752889857377,-1454.48,0.00020547,2]
[373174008,1752889857387,-488.63,0.00020547,2]
[373174010,1752889857396,-460.0,0.00020547,2]
[373174012,1752889857406,-737.82,0.00020547,2]
[373174014,1752889857416,-460.32,0.00020547,2]
[373174016,1752889857426,-967.13,0.00020547,2]
[373174018,1752889857436,-3100.36,0.00020547,2]
[373174020,1752889857445,-460.0,0.00020547,2]
[373174022,1752889857455,-560.4930551,0.00020547,2]
[373174024,1752889857464,-1316.83,0.00020547,2]
[373174026,1752889857473,-460.0,0.00020547,2]
[373174027,1752889857483,-460.0,0.00020547,2]
[373174030,1752889857493,-25000.0,0.00020572,2]
[373174032,1752889857503,-217.40428983,0.00020572,2]
[373174034,1752889857512,-447.635021,0.00020603,2]
[373174036,1752889857523,-7527.79217153,0.00020682,2]
[373174038,1752889857534,-1500.0,0.00020807,2]
[373174040,1752889857544,-624.98,0.00020821,2]
[373174042,1752889857553,-460.0,0.00020821,2]
[373174044,1752889857562,-498.88,0.00020821,2]
[373174046,1752889857571,-460.0,0.00020821,2]
[373174048,1752889857585,-554.86675325,0.00020821,2]
[373174050,1752889857595,-643.65,0.00020821,2]
[373174052,1752889857605,-460.0,0.00020821,2]
[373174054,1752889857614,-460.0,0.00020821,2]
[373174056,1752889857625,-1048.66,0.00020821,2]
[373174058,1752889857634,-2112.61,0.00020821,2]
[373174060,1752889857643,-460.0,0.00020821,2]
[373174062,1752889857653,-460.0,0.00020821,2]
[373174064,1752889857663,-460.0,0.00020821,2]
[373174066,1752889857674,-460.0,0.00020821,2]
[373174068,1752889857683,-1102.5,0.00020821,2]
[373174070,1752889857693,-460.0,0.00020821,2]
[373174072,1752889857702,-460.0,0.00020821,2]
[373174074,1752889857711,-514.42,0.00020821,2]
[373174076,1752889857721,-652.43,0.00020821,2]
[373174078,1752889857730,-1428.9,0.00020821,2]
[373174080,1752889857740,-1641.4,0.00020821,2]
[373174082,1752889857749,-460.0,0.00020821,2]
[373174084,1752889857758,-460.0,0.00020821,2]
[373174086,1752889857768,-460.0,0.00020821,2]
[373174088,1752889857777,-1213.09,0.00020821,2]
[373174090,1752889857786,-555.73,0.00020821,2]
[373174092,1752889857796,-460.0,0.00020821,2]
[373174094,1752889857807,-2991.77,0.00020821,2]
[373174096,1752889857817,-460.0,0.00020821,2]
[373174098,1752889857826,-1987.27,0.00020821,2]
[373174100,1752889857836,-938.91,0.00020821,2]
[373174102,1752889857846,-460.0,0.00020821,2]
[373174104,1752889857856,-1454.48,0.00020821,2]
[373174106,1752889857865,-488.63,0.00020821,2]
[373174108,1752889857875,-460.0,0.00020821,2]
[373174110,1752889857884,-737.82,0.00020821,2]
[373174112,1752889857894,-460.32,0.00020821,2]
[373174114,1752889857903,-967.13,0.00020821,2]
[373174116,1752889857913,-3100.36,0.00020821,2]
[373174118,1752889857924,-460.0,0.00020821,2]
[373174120,1752889857933,-1316.83,0.00020821,2]
[373174122,1752889857942,-460.0,0.00020821,2]
[373174123,1752889857952,-460.0,0.00020821,2]
[373174124,1752889857961,-660.0,0.00020873,2]
[373174125,1752889857972,-224.2,0.0002103,2]
[373174126,1752889857982,-7527.79217153,0.00021061,2]
[373174127,1752889857991,-624.98,0.00021095,2]
[373174128,1752889858000,-460.0,0.00021095,2]
[373174129,1752889858010,-498.88,0.00021095,2]
[373174130,1752889858019,-460.0,0.00021095,2]
[373174131,1752889858029,-643.65,0.00021095,2]
[373174132,1752889858039,-451.98861646,0.00021095,2]
[373174133,1752889858048,-460.0,0.00021095,2]
[373174134,1752889858057,-1048.66,0.00021095,2]
[373174136,1752889858067,-2112.61,0.00021095,2]
[373174138,1752889858076,-338.88346243,0.00021095,2]
[373174140,1752889858086,-460.0,0.00021095,2]
[373174142,1752889858096,-460.0,0.00021095,2]
[373174143,1752889858105,-379.71,0.00021095,2]
[373174145,1752889858114,-1102.5,0.00021095,2]
[373174147,1752889858124,-495.24335677,0.00021095,2]
[373174149,1752889858133,-460.0,0.00021095,2]
[373174151,1752889858143,-514.42,0.00021095,2]
[373174153,1752889858152,-652.43,0.00021095,2]
[373174166,1752889858274,-1428.9,0.00021095,2]
[373174168,1752889858284,-1641.4,0.00021095,2]
[373174170,1752889858294,-460.0,0.00021095,2]
[373174172,1752889858303,-460.0,0.00021095,2]
[373174174,1752889858313,-460.0,0.00021095,2]
[373174176,1752889858323,-1213.09,0.00021095,2]
[373174178,1752889858332,-555.73,0.00021095,2]
[373174180,1752889858342,-211.06105231,0.00021095,2]
[373174182,1752889858351,-2991.77,0.00021095,2]
[373174184,1752889858361,-293.51950427,0.00021095,2]
[373174186,1752889858370,-1987.27,0.00021095,2]
[373174188,1752889858380,-938.91,0.00021095,2]
[373174189,1752889858390,-460.0,0.00021095,2]
[373174191,1752889858400,-1454.48,0.00021095,2]
[373174193,1752889858410,-488.63,0.00021095,2]
[373174195,1752889858420,-460.0,0.00021095,2]
[373174197,1752889858429,-737.82,0.00021095,2]
[373174199,1752889858439,-460.32,0.00021095,2]
[373174201,1752889858448,-967.13,0.00021095,2]
[373174203,1752889858458,-3100.36,0.00021095,2]
[373174205,1752889858469,-361.15389336,0.00021095,2]
[373174207,1752889858478,-1316.83,0.00021095,2]
[373174209,1752889858487,-460.0,0.00021095,2]
[373174210,1752889858496,-419.91138815,0.00021095,2]
[373174212,1752889858506,-25000.0,0.0002112,2]
[373174214,1752889858516,-7527.79217153,0.00021169,2]
[373174216,1752889858525,-172.0,0.00021178,4]
[373174218,1752889858535,-500.0,0.00021236,2]
[373174220,1752889858544,-500.0,0.0002128,2]
[373174222,1752889858554,-1959.95358454,0.00021355,2]
[373174224,1752889858564,-1291.0,0.00021361,2]
[373174226,1752889858574,-624.98,0.00021369,2]
[373174228,1752889858587,-339.86,0.00021369,2]
[373174230,1752889858596,-498.88,0.00021369,2]
[373174232,1752889858606,-460.0,0.00021369,2]
[373174234,1752889858616,-643.65,0.00021369,2]
[373174236,1752889858632,-460.0,0.00021369,2]
[373174238,1752889858642,-1048.66,0.00021369,2]
[373174240,1752889858651,-2112.61,0.00021369,2]
[373174242,1752889858661,-460.0,0.00021369,2]
[373174244,1752889858672,-460.0,0.00021369,2]
[373174246,1752889858681,-1102.5,0.00021369,2]
[373174248,1752889858690,-525.8543733,0.00021369,2]
[373174250,1752889858699,-514.42,0.00021369,2]
[373174252,1752889858709,-652.43,0.00021369,2]
[373174254,1752889858719,-1428.9,0.00021369,2]
[373174256,1752889858729,-1641.4,0.00021369,2]
[373174258,1752889858738,-460.0,0.00021369,2]
[373174260,1752889858748,-460.0,0.00021369,2]
[373174262,1752889858758,-460.0,0.00021369,2]
[373174264,1752889858767,-555.73,0.00021369,2]
[373174266,1752889858777,-1213.09,0.00021369,2]
[373174268,1752889858786,-2991.77,0.00021369,2]
[373174270,1752889858796,-938.91,0.00021369,2]
[373174272,1752889858805,-460.0,0.00021369,2]
[373174274,1752889858814,-1454.48,0.00021369,2]
[373174276,1752889858824,-488.63,0.00021369,2]
[373174278,1752889858833,-460.0,0.00021369,2]
[373174280,1752889858842,-737.82,0.00021369,2]
[373174282,1752889858851,-460.32,0.00021369,2]
[373174284,1752889858861,-967.13,0.00021369,2]
[373174286,1752889858871,-3100.36,0.00021369,2]
[373174288,1752889858881,-1316.83,0.00021369,2]
[373174290,1752889858890,-604.3,0.00021369,2]
[373174292,1752889858899,-700.0,0.00021378,2]
[373174294,1752889858908,-215.0738,0.00021393,2]
[373174296,1752889858918,-760.0,0.00021421,2]
[373174298,1752889858928,-823.0,0.00021454,2]
[373174299,1752889858937,-384.34898903,0.00021463,2]